bitfinex/quotes_BTCUSD_20240803
["timestamp","ask_amount","ask_price","bid_price","bid_amount"]
[1722681902213,0.30668924,61874.0,61873.0,0.0402873]
[1722681904204,0.42790324,61874.0,61873.0,0.0402873]
[1722681907379,0.30668924,61874.0,61873.0,0.0402873]
[1722681907752,0.16028924,61874.0,61873.0,0.4039353]
[1722681907937,0.16028924,61874.0,61873.0,0.1615033]
[1722681908374,0.16028924,61874.0,61873.0,0.4039353]
[1722681910741,0.16028924,61874.0,61873.0,0.6463673]
[1722681911986,0.16028924,61874.0,61873.0,0.4039353]
[1722681914744,0.29598924,61874.0,61873.0,0.1615033]
[1722681914934,0.29598924,61874.0,61873.0,0.0402873]
[1722681916228,0.41720324,61874.0,61873.0,0.0402873]
[1722681916467,0.65963124,61874.0,61873.0,0.012913]
[1722681916699,0.41720324,61874.0,61873.0,0.012913]
[1722681917013,0.65963124,61874.0,61873.0,0.04030201]
[1722681917236,0.41720324,61874.0,61873.0,0.012913]
[1722681917465,0.41720324,61874.0,61873.0,0.04030201]
[1722681917696,0.41720324,61874.0,61873.0,0.012913]
[1722681917973,0.65963124,61874.0,61873.0,0.012913]
[1722681918152,0.65963124,61874.0,61873.0,0.04030201]
[1722681919638,0.41720324,61874.0,61873.0,0.04030201]
[1722681920500,0.41720324,61874.0,61873.0,0.012913]
[1722681920730,0.65963124,61874.0,61873.0,0.012913]
[1722681921979,0.90205924,61874.0,61873.0,0.012913]
[1722681922242,0.65963124,61874.0,61873.0,0.012913]
[1722681922656,0.65963124,61874.0,61873.0,0.04030201]
[1722681924444,0.65963124,61874.0,61873.0,0.012913]
[1722681928179,0.65863124,61874.0,61873.0,0.006913]
[1722681928385,0.65763124,61874.0,61873.0,0.000913]
[1722681928584,0.66463124,61874.0,61873.0,0.001913]
[1722681928890,0.67163124,61874.0,61873.0,0.002913]
[1722681929044,0.66463124,61874.0,61873.0,0.001913]
[1722681930130,0.67163124,61874.0,61873.0,0.002913]
[1722681933030,0.42920324,61874.0,61873.0,0.002913]
[1722681933723,0.42920324,61874.0,61873.0,0.02788141]
[1722681933927,0.42920324,61874.0,61873.0,0.002913]
[1722681934145,0.42920324,61874.0,61873.0,0.02788141]
[1722681934350,0.42920324,61874.0,61873.0,0.002913]
[1722681934568,0.67163124,61874.0,61873.0,0.02788141]
[1722681934785,0.67163124,61874.0,61873.0,0.002913]
[1722681935230,0.67163124,61874.0,61873.0,0.02788141]
[1722681935440,0.67163124,61874.0,61873.0,0.002913]
[1722681935699,0.67163124,61874.0,61873.0,0.02788141]
[1722681935910,0.67163124,61874.0,61873.0,0.002913]
[1722681936140,0.67163124,61874.0,61873.0,0.02788141]
[1722681936352,0.67163124,61874.0,61873.0,0.002913]
[1722681936560,0.67163124,61874.0,61873.0,0.02788141]
[1722681936762,0.67163124,61874.0,61873.0,0.002913]
[1722681937382,0.67163124,61874.0,61873.0,0.02788141]
[1722681937588,0.67163124,61874.0,61873.0,0.002913]
[1722681937739,0.67163124,61874.0,61873.0,0.02788141]
[1722681937907,0.67163124,61874.0,61873.0,0.002913]
[1722681938113,0.67163124,61874.0,61873.0,0.02788141]
[1722681938325,0.67163124,61874.0,61873.0,0.002913]
[1722681938520,0.67163124,61874.0,61873.0,0.0278832]
[1722681938722,0.67163124,61874.0,61873.0,0.002913]
[1722681938967,0.67163124,61874.0,61873.0,0.0278832]
[1722681939170,0.67163124,61874.0,61873.0,0.002913]
[1722681939344,0.67163124,61874.0,61873.0,0.0278832]
[1722681940432,0.91405924,61874.0,61873.0,0.002913]
[1722681946359,0.96861197,61874.0,61873.0,0.002913]
[1722681946755,0.91405924,61874.0,61873.0,0.002913]
[1722681947580,0.96861154,61874.0,61873.0,0.002913]
[1722681948524,0.91405924,61874.0,61873.0,0.002913]
[1722681949430,0.9686847,61874.0,61873.0,0.002913]
[1722681950880,0.91405924,61874.0,61873.0,0.002913]
[1722681951519,0.96879212,61874.0,61873.0,0.002913]
[1722681954651,0.96880872,61874.0,61873.0,0.002913]
[1722681955060,0.96880862,61874.0,61873.0,0.002913]
[1722681955924,0.91405924,61874.0,61873.0,0.002913]
[1722681956132,0.96865619,61874.0,61873.0,0.002913]
[1722681958645,0.91405924,61874.0,61873.0,0.002913]
[1722681959606,0.96872429,61874.0,61873.0,0.002913]
[1722681960474,0.96816791,61874.0,61873.0,0.002913]
[1722681961681,0.96836081,61874.0,61873.0,0.002913]
[1722681962251,1.21078881,61874.0,61873.0,0.002913]
[1722681962873,1.33218581,61874.0,61873.0,0.002913]
[1722681963388,1.21078881,61874.0,61873.0,0.002913]
[1722681965427,1.21140095,61874.0,61873.0,0.002913]
[1722681965803,1.15593086,61874.0,61873.0,0.002913]
[1722681966011,1.21129849,61874.0,61873.0,0.002913]
[1722681968155,1.20057535,61874.0,61873.0,0.002913]
[1722681968711,1.20140535,61874.0,61873.0,0.002913]
[1722681968915,1.14603772,61874.0,61873.0,0.002913]
[1722681969121,1.20120861,61874.0,61873.0,0.002913]
[1722681971325,1.44363661,61874.0,61873.0,0.002913]
[1722681972240,1.44363661,61874.0,61873.0,0.001913]
[1722681972241,1.71703661,61874.0,61873.0,0.001913]
[1722681972447,1.68186572,61874.0,61873.0,0.001913]
[1722681972653,1.72991798,61874.0,61873.0,0.000913]
[1722681972852,1.74391798,61874.0,61873.0,0.001913]
[1722681973255,1.72991798,61874.0,61873.0,0.000913]
[1722681973451,1.72991798,61874.0,61873.0,0.001913]
[1722681973452,1.74391798,61874.0,61873.0,0.001913]
[1722681973612,1.75691798,61874.0,61873.0,0.001913]
[1722681973859,1.58651798,61874.0,61873.0,0.001913]
[1722681974061,1.55351798,61874.0,61873.0,0.001913]
[1722681974461,1.62361798,61874.0,61873.0,0.001913]
[1722681974891,1.55751798,61874.0,61873.0,0.001913]
[1722681975228,1.61361798,61874.0,61873.0,0.001913]
[1722681976079,1.61397201,61874.0,61873.0,0.001913]
[1722681976256,1.61397271,61874.0,61873.0,0.001913]
[1722681976457,1.55829117,61874.0,61873.0,0.001913]
[1722681976667,1.61369816,61874.0,61873.0,0.001913]
[1722681978966,1.61374574,61874.0,61873.0,0.001913]
[1722681979810,1.61361153,61874.0,61873.0,0.001913]
[1722681980613,1.61306161,61874.0,61873.0,0.001913]
[1722681982559,1.55696161,61874.0,61873.0,0.001913]
[1722681982976,1.60306161,61874.0,61873.0,0.001913]
[1722681983554,1.60303792,61874.0,61873.0,0.001913]
[1722681983952,0.98668192,61874.0,61873.0,0.001913]
[1722681984156,0.16501525,61874.0,61873.0,0.566861]
[1722681984351,0.16501525,61874.0,61873.0,0.589861]
[1722681984584,0.16501525,61874.0,61873.0,0.31356789]
[1722681984751,0.16501525,61874.0,61873.0,0.16935189]
[1722681984752,0.34232925,61874.0,61873.0,0.16935189]
[1722681985299,0.15101525,61874.0,61873.0,0.16835189]
[1722681985498,0.16501525,61874.0,61873.0,0.16935189]
[1722681985718,0.15101525,61874.0,61873.0,0.16935189]
[1722681986536,0.13701525,61874.0,61873.0,0.16835189]
[1722681986741,0.15701525,61874.0,61873.0,0.17035189]
[1722681987118,0.15701525,61874.0,61873.0,0.16935189]
[1722681988307,0.16701525,61874.0,61873.0,0.17035189]
[1722681993627,0.16674089,61874.0,61873.0,0.17035189]
[1722681995027,0.28795489,61874.0,61873.0,0.17035189]
[1722681995644,0.40916889,61874.0,61873.0,0.17035189]
[1722681995835,0.53038289,61874.0,61873.0,0.10755189]
[1722681999174,0.16674089,61874.0,61873.0,0.10755189]
[1722682000481,0.28795489,61874.0,61873.0,0.10755189]
[1722682000686,0.53010697,61874.0,61873.0,0.10755189]
[1722682000886,0.28767897,61874.0,61873.0,0.10755189]
[1722682004422,0.53010697,61874.0,61873.0,0.02515189]
[1722682004649,0.83613497,61874.0,61873.0,0.02515189]
[1722682004887,0.83613497,61874.0,61873.0,0.002913]
[1722682005627,1.07856297,61874.0,61873.0,0.002913]
[1722682010948,1.07828791,61874.0,61873.0,0.002913]
[1722682011427,1.2128438,61874.0,61873.0,0.002913]
[1722682011648,1.15918791,61874.0,61873.0,0.002913]
[1722682012016,1.45527302,61874.0,61873.0,0.002913]
[1722682012024,1.46508392,61874.0,61873.0,0.002913]
[1722682013032,1.46459295,61874.0,61873.0,0.002913]
[1722682013853,1.52069295,61874.0,61873.0,0.002913]
[1722682014394,1.27826495,61874.0,61873.0,0.002913]
[1722682014629,1.19736495,61874.0,61873.0,0.002913]
[1722682015054,1.18755405,61874.0,61873.0,0.002913]
[1722682015265,1.13438791,61874.0,61873.0,0.002913]
[1722682015948,1.18886959,61874.0,61873.0,0.002913]
[1722682017363,1.13438791,61874.0,61873.0,0.002913]
[1722682017829,0.83585991,61874.0,61873.0,0.002913]
[1722682018077,0.16618991,61874.0,61873.0,0.002913]
[1722682018312,0.16618991,61874.0,61873.0,0.149713]
[1722682018528,0.28740391,61874.0,61873.0,0.1747053]
[1722682018725,0.58593191,61874.0,61873.0,0.0279053]
[1722682019159,0.58593191,61874.0,61873.0,0.002913]
[1722682019400,0.58593191,61874.0,61873.0,0.02512838]
[1722682019806,0.16618991,61874.0,61873.0,0.002913]
[1722682020013,0.16618991,61874.0,61873.0,0.0279053]
[1722682020224,0.52983191,61874.0,61873.0,0.002913]
[1722682020547,0.77225991,61874.0,61873.0,0.02512537]
[1722682020701,0.52983191,61874.0,61873.0,0.002913]
[1722682021368,0.28740391,61874.0,61873.0,0.002913]
[1722682021584,0.28740391,61874.0,61873.0,0.02790192]
[1722682021585,0.52983191,61874.0,61873.0,0.02790192]
[1722682021971,0.77225991,61874.0,61873.0,0.002913]
[1722682022175,0.52983191,61874.0,61873.0,0.002913]
[1722682024240,0.28740391,61874.0,61873.0,0.002913]
[1722682024557,0.28740391,61874.0,61873.0,0.02790192]
[1722682024812,0.52983191,61874.0,61873.0,0.02790192]
[1722682025655,0.52983191,61874.0,61873.0,0.002913]
[1722682025839,0.52983191,61874.0,61873.0,0.02790192]
[1722682026057,0.52983191,61874.0,61873.0,0.002913]
[1722682026303,0.52983191,61874.0,61873.0,0.02790192]
[1722682026472,0.52983191,61874.0,61873.0,0.002913]
[1722682026674,0.52983191,61874.0,61873.0,0.02790192]
[1722682026915,0.52983191,61874.0,61873.0,0.002913]
[1722682027115,0.52983191,61874.0,61873.0,0.02790192]
[1722682027336,0.52983191,61874.0,61873.0,0.002913]
[1722682027543,0.52983191,61874.0,61873.0,0.02512537]
[1722682027745,0.52983191,61874.0,61873.0,0.002913]
[1722682030806,0.28740391,61874.0,61873.0,0.002913]
[1722682031122,0.28740391,61874.0,61873.0,0.02790192]
[1722682032664,0.28740391,61874.0,61873.0,0.10890192]
[1722682033946,0.52983191,61874.0,61873.0,0.02790192]
[1722682037058,0.28740391,61874.0,61873.0,0.02790192]
[1722682038601,0.28740391,61874.0,61873.0,0.002913]
[1722682038803,0.28740391,61874.0,61873.0,0.02788474]
[1722682039836,0.16618991,61874.0,61873.0,0.20940074]
[1722682040073,0.16618991,61874.0,61873.0,0.52923274]
[1722682040255,0.16618991,61874.0,61873.0,0.77166474]
[1722682040659,0.16618991,61874.0,61873.0,0.90598719]
[1722682040858,0.16618991,61874.0,61873.0,0.77166474]
[1722682041420,0.16618991,61874.0,61873.0,0.92898982]
[1722682041833,0.16618991,61874.0,61873.0,0.79466474]
[1722682042043,0.16618991,61874.0,61873.0,0.92898395]
[1722682042244,0.16618991,61874.0,61873.0,0.55223274]
[1722682043080,0.16618991,61874.0,61873.0,0.79466474]
[1722682045020,0.16618991,61874.0,61873.0,0.10528474]
[1722682045232,0.16618991,61874.0,61873.0,0.22650074]
[1722682046680,0.16618991,61874.0,61873.0,0.46893274]
[1722682047968,0.16618991,61874.0,61873.0,0.22650074]
[1722682048837,0.16618991,61874.0,61873.0,0.14910074]
[1722682048980,0.23248991,61874.0,61873.0,0.14910074]
[1722682050014,0.23248991,61874.0,61873.0,0.02788474]
[1722682050979,0.35370391,61874.0,61873.0,0.02788474]
[1722682052529,0.23248991,61874.0,61873.0,0.02788474]
[1722682054394,0.16618991,61874.0,61873.0,0.02788474]
[1722682054600,0.16618991,61874.0,61873.0,0.14910074]
[1722682055445,0.16618991,61874.0,61873.0,0.02788474]
[1722682055848,0.16618991,61874.0,61873.0,0.14910074]
[1722682056254,0.16618991,61874.0,61873.0,0.77656474]
[1722682056520,0.16618991,61874.0,61873.0,0.79956474]
[1722682056962,0.16618991,61874.0,61873.0,1.17632277]
[1722682057933,0.15618991,61874.0,61873.0,1.17532277]
[1722682058155,0.13618991,61874.0,61873.0,1.17432277]
[1722682058357,0.13818991,61874.0,61873.0,1.17432277]
[1722682058565,0.14018991,61874.0,61873.0,1.17432277]
[1722682059391,0.14018991,61874.0,61873.0,1.03999674]
[1722682059621,0.14018991,61874.0,61873.0,1.17431502]
[1722682062429,0.14018991,61874.0,61873.0,1.17431603]
[1722682063276,0.00483,61874.0,61873.0,1.17431603]
[1722682063476,0.00483,61874.0,61873.0,1.18431331]
[1722682063686,0.00483,61874.0,61873.0,1.23261121]
[1722682063887,0.00483,61874.0,61873.0,1.22261121]
[1722682064203,0.00483,61874.0,61873.0,1.17431182]
[1722682064401,0.00483,61874.0,61873.0,1.22261121]
[1722682064580,0.00483,61874.0,61873.0,1.18431182]
[1722682064770,0.00483,61874.0,61873.0,1.28091061]
[1722682066248,0.00483,61874.0,61873.0,1.18431182]
[1722682066866,0.00483,61874.0,61873.0,1.28091061]
[1722682067244,0.00483,61874.0,61873.0,1.17431182]
[1722682067443,0.00483,61874.0,61873.0,1.24672252]
[1722682068869,0.00483,61874.0,61873.0,1.2467184]
[1722682069502,0.00483,61874.0,61873.0,1.17431182]
[1722682069638,0.00483,61874.0,61873.0,1.24671977]
[1722682070528,0.00483,61874.0,61873.0,1.11240469]
[1722682070729,0.00483,61874.0,61873.0,1.24670859]
[1722682072162,0.00483,61874.0,61873.0,1.11240469]
[1722682072953,0.00483,61874.0,61873.0,1.24670703]
[1722682074107,0.00483,61874.0,61873.0,1.11240387]
[1722682074855,0.00483,61874.0,61873.0,1.24670854]
[1722682075676,0.00483,61874.0,61873.0,1.11240387]
[1722682076091,0.00483,61874.0,61873.0,1.25670703]
[1722682076288,0.00483,61874.0,61873.0,1.49913903]
[1722682076501,0.00911,61877.0,61875.0,0.880484]
[1722682076698,0.00911,61877.0,61876.0,0.92718442]
[1722682076903,0.00911,61877.0,61876.0,1.19805258]
[1722682077495,0.00911,61877.0,61876.0,1.68289258]
[1722682078597,0.00911,61877.0,61876.0,1.68287498]
[1722682078817,0.01011,61877.0,61876.0,1.69487498]
[1722682079026,0.01111,61877.0,61876.0,1.70187498]
[1722682082709,0.00911,61882.0,61881.0,1.2979]
[1722682082923,0.00911,61882.0,61881.0,1.45518488]
[1722682083159,0.00911,61882.0,61881.0,1.48360356]
[1722682083366,0.00911,61882.0,61881.0,1.55594005]
[1722682083565,0.00911,61882.0,61881.0,1.47360356]
[1722682083867,0.00911,61882.0,61881.0,1.48360356]
[1722682084074,0.00911,61882.0,61881.0,1.33931868]
[1722682084279,0.00911,61882.0,61881.0,1.55594008]
[1722682084479,0.01011,61882.0,61881.0,1.49460359]
[1722682085261,0.01011,61882.0,61881.0,1.56694008]
[1722682085420,0.01011,61882.0,61881.0,1.49460359]
[1722682087677,0.01011,61882.0,61881.0,1.49460276]
[1722682087875,0.01011,61882.0,61881.0,1.54281593]
[1722682088140,0.01011,61882.0,61881.0,1.40853185]
[1722682088301,0.01011,61882.0,61881.0,1.53281609]
[1722682088753,0.01011,61882.0,61881.0,1.54281609]
[1722682089184,0.01011,61882.0,61881.0,1.54281597]
[1722682089562,0.01011,61882.0,61881.0,1.53281597]
[1722682089748,0.01011,61882.0,61881.0,1.54281597]
[1722682090366,0.01011,61882.0,61881.0,1.54280675]
[1722682090744,0.01011,61882.0,61881.0,1.53280675]
[1722682090945,0.01011,61882.0,61881.0,1.22890675]
[1722682093280,0.01011,61882.0,61881.0,1.23890675]
[1722682094229,0.01011,61882.0,61881.0,1.1907028]
[1722682094675,0.01011,61882.0,61881.0,1.19070255]
[1722682095045,0.01011,61882.0,61881.0,1.2388987]
[1722682095253,0.01011,61882.0,61881.0,1.19070255]
[1722682096260,0.01011,61882.0,61881.0,1.26300848]
[1722682096460,0.01011,61882.0,61881.0,1.50540848]
[1722682097276,0.01011,61882.0,61881.0,1.25300848]
[1722682097486,0.01011,61882.0,61881.0,1.18070255]
[1722682098101,0.01011,61882.0,61881.0,1.04641868]
[1722682098307,0.01011,61882.0,61881.0,1.25300893]
[1722682098728,0.01011,61882.0,61881.0,1.26300893]
[1722682099862,0.01011,61882.0,61881.0,1.43963089]
[1722682100094,0.01011,61882.0,61881.0,1.42964049]
[1722682100325,0.01011,61882.0,61881.0,1.18070291]
[1722682100557,0.01011,61882.0,61881.0,1.13460291]
[1722682100857,0.01011,61882.0,61881.0,1.43006266]
[1722682100975,0.01011,61882.0,61881.0,1.44006266]
[1722682101221,0.01011,61882.0,61881.0,1.36774076]
[1722682101449,0.01011,61882.0,61881.0,1.63129107]
[1722682102361,0.01011,61882.0,61881.0,1.53488316]
[1722682102578,0.01011,61882.0,61881.0,1.53509993]
[1722682102994,0.01011,61882.0,61881.0,1.52509993]
[1722682103197,0.01011,61882.0,61881.0,1.62156623]
[1722682103403,0.01011,61882.0,61881.0,1.52509993]
[1722682104764,0.01011,61882.0,61881.0,1.64569813]
[1722682105892,0.01011,61882.0,61881.0,1.52509993]
[1722682106318,0.01011,61882.0,61881.0,1.65569813]
[1722682106527,0.01011,61882.0,61881.0,1.65571553]
[1722682106954,0.01011,61882.0,61881.0,1.58857313]
[1722682107192,0.01011,61882.0,61881.0,1.53509937]
[1722682107395,0.01011,61882.0,61881.0,1.65573209]
[1722682108221,0.01011,61882.0,61881.0,1.53509937]
[1722682108440,0.01011,61882.0,61881.0,1.65572339]
[1722682108675,0.01011,61882.0,61881.0,1.53509937]
[1722682108881,0.01011,61882.0,61881.0,1.6557126]
[1722682109091,0.01011,61882.0,61881.0,1.53509937]
[1722682110593,0.01011,61882.0,61881.0,1.46899937]
[1722682110837,0.01011,61882.0,61881.0,1.52509937]
[1722682111019,0.01011,61882.0,61881.0,1.44559937]
[1722682111423,0.01011,61882.0,61881.0,1.14406052]
[1722682111596,0.01011,61882.0,61881.0,1.38857899]
[1722682111802,0.01011,61882.0,61881.0,1.45572143]
[1722682111981,0.01011,61882.0,61881.0,1.3885695]
[1722682112184,0.01011,61882.0,61881.0,1.45571157]
[1722682112591,0.01011,61882.0,61881.0,1.69811157]
[1722682112790,0.01011,61882.0,61881.0,1.45571157]
[1722682112995,0.01011,61882.0,61881.0,1.44571157]
[1722682116400,0.01011,61882.0,61881.0,1.26834431]
[1722682116401,0.00011,61882.0,61881.0,1.26834431]
[1722682118003,0.00011,61882.0,61881.0,1.27834431]
[1722682118634,0.00011,61882.0,61881.0,1.74472941]
[1722682118956,0.00011,61882.0,61881.0,1.56536215]
[1722682119109,0.00011,61882.0,61881.0,1.98512941]
[1722682119311,0.00011,61882.0,61881.0,1.80776215]
[1722682119506,0.00011,61882.0,61881.0,1.98512941]
[1722682119719,0.00011,61882.0,61881.0,1.26834431]
[1722682120157,0.00011,61882.0,61881.0,1.65546249]
[1722682120363,0.00011,61882.0,61881.0,1.66546237]
[1722682120806,0.00011,61882.0,61881.0,1.46403652]
[1722682121016,0.00011,61882.0,61881.0,1.67451885]
[1722682121197,0.00011,61882.0,61881.0,1.59894217]
[1722682121366,0.00011,61882.0,61881.0,1.77627971]
[1722682121585,0.00011,61882.0,61881.0,1.59894217]
[1722682121779,0.00011,61882.0,61881.0,1.77627971]
[1722682121997,0.00011,61882.0,61881.0,1.59894217]
[1722682122171,0.00011,61882.0,61881.0,1.77627971]
[1722682122370,0.00011,61882.0,61881.0,1.59894217]
[1722682123078,0.00011,61882.0,61881.0,1.59694217]
[1722682124310,0.00011,61882.0,61881.0,1.52980101]
[1722682124514,0.00011,61882.0,61881.0,1.59694207]
[1722682124893,0.00011,61882.0,61881.0,1.59694188]
[1722682125274,0.00011,61882.0,61881.0,1.59694189]
[1722682125386,0.00011,61882.0,61881.0,1.59894189]
[1722682126252,0.00011,61882.0,61881.0,1.77604445]
[1722682126873,0.00094,61882.0,61881.0,1.76404445]
[1722682127485,0.00094,61882.0,61881.0,1.77404445]
[1722682128265,0.00094,61882.0,61881.0,1.77444656]
[1722682129320,0.00094,61882.0,61881.0,1.7743827]
[1722682129523,0.00094,61882.0,61881.0,1.77438273]
[1722682129729,0.00094,61882.0,61881.0,1.76438273]
[1722682131319,0.00094,61882.0,61881.0,1.70828273]
[1722682131539,0.00094,61882.0,61881.0,1.68818273]
[1722682132719,0.00094,61882.0,61881.0,1.68826967]
[1722682133521,0.00094,61882.0,61881.0,1.69826967]
[1722682135845,0.00094,61882.0,61881.0,1.70026967]
[1722682136137,0.00094,61882.0,61881.0,1.69826967]
[1722682136541,0.00094,61882.0,61881.0,1.3864601]
[1722682136733,0.00094,61882.0,61881.0,1.69782708]
[1722682136939,0.00094,61882.0,61881.0,1.63068566]
[1722682137151,0.00094,61882.0,61881.0,1.69782708]
[1722682137355,0.00094,61882.0,61881.0,1.63069124]
[1722682137528,0.00094,61882.0,61881.0,1.69783178]
[1722682138282,0.00094,61882.0,61881.0,1.69983178]
[1722682138501,0.00094,61882.0,61881.0,1.69783178]
[1722682140540,0.00094,61882.0,61881.0,1.63069124]
[1722682140683,0.00094,61882.0,61881.0,1.69783253]
[1722682142742,0.00094,61882.0,61881.0,1.8656827]
[1722682143178,0.00094,61882.0,61881.0,1.7985383]
[1722682143385,0.00094,61882.0,61881.0,1.86567712]
[1722682144449,0.00094,61882.0,61881.0,1.85567712]
[1722682144621,0.00094,61882.0,61881.0,1.86567712]
[1722682145265,0.00094,61882.0,61881.0,1.85567712]
[1722682145464,0.00094,61882.0,61881.0,1.85567794]
[1722682145864,0.00094,61882.0,61881.0,1.61327794]
[1722682146098,0.00094,61882.0,61881.0,1.44543006]
[1722682146311,0.00094,61882.0,61881.0,1.68783006]
[1722682146604,0.00094,61882.0,61881.0,1.3764575]
[1722682146830,0.00094,61882.0,61881.0,1.68779513]
[1722682147308,0.00094,61882.0,61881.0,1.85564366]
[1722682147785,0.00094,61882.0,61881.0,1.61324366]
[1722682148217,0.00094,61882.0,61881.0,1.85564366]
[1722682148751,0.00094,61882.0,61881.0,1.85564395]
[1722682148961,0.00094,61882.0,61881.0,1.86564395]
[1722682149367,0.00094,61882.0,61881.0,1.86764395]
[1722682149774,0.00094,61882.0,61881.0,1.86564395]
[1722682150377,0.00094,61882.0,61881.0,1.86583174]
[1722682150579,0.00094,61882.0,61881.0,1.62343174]
[1722682151203,0.00094,61882.0,61881.0,1.86583174]
[1722682153969,0.00094,61882.0,61881.0,1.86582767]
[1722682154583,0.00094,61882.0,61881.0,2.18318698]
[1722682154820,0.00094,61882.0,61881.0,2.17118698]
[1722682155035,0.00094,61882.0,61881.0,1.85582767]
[1722682156472,0.00094,61882.0,61881.0,1.86582767]
[1722682156676,0.00094,61882.0,61881.0,1.85582767]
[1722682156889,0.00094,61882.0,61881.0,1.61342767]
[1722682157286,0.00094,61882.0,61881.0,1.85582767]
[1722682157530,0.00094,61882.0,61881.0,1.86582767]
[1722682158093,0.00094,61882.0,61881.0,1.86567732]
[1722682158295,0.00094,61882.0,61881.0,1.86567675]
[1722682158511,0.00094,61882.0,61881.0,1.69983112]
[1722682158924,0.00094,61882.0,61881.0,1.86768054]
[1722682159736,0.00094,61882.0,61881.0,1.85568054]
[1722682159947,0.00094,61882.0,61881.0,1.68874412]
[1722682161064,0.00094,61882.0,61881.0,1.62183463]
[1722682161289,0.00094,61882.0,61881.0,1.68897595]
[1722682162417,0.00094,61882.0,61881.0,1.44657595]
[1722682162805,0.00094,61882.0,61881.0,1.44657555]
[1722682163015,0.00094,61882.0,61881.0,1.68897555]
[1722682165340,0.00094,61882.0,61881.0,1.44657555]
[1722682165741,0.14434,61882.0,61881.0,1.44657555]
[1722682167186,0.14434,61882.0,61881.0,1.45657555]
[1722682167578,0.14434,61882.0,61881.0,1.44657555]
[1722682168238,0.14434,61882.0,61881.0,1.44659301]
[1722682168442,0.14434,61882.0,61881.0,1.52373506]
[1722682168654,0.14434,61882.0,61881.0,1.51373506]
[1722682168858,0.14434,61882.0,61881.0,1.44659347]
[1722682169073,0.14434,61882.0,61881.0,1.51373519]
[1722682169449,0.14434,61882.0,61881.0,1.65880257]
[1722682169603,0.14434,61882.0,61881.0,1.60270257]
[1722682169805,0.30179924,61882.0,61881.0,0.97075717]
[1722682170214,0.30179924,61882.0,61881.0,1.09164912]
[1722682170420,0.30179924,61882.0,61881.0,1.33404912]
[1722682170819,0.30179924,61882.0,61881.0,1.33404608]
[1722682172244,0.30179924,61882.0,61881.0,1.21315717]
[1722682173057,0.30179924,61882.0,61881.0,1.30985369]
[1722682173262,0.30179924,61882.0,61881.0,1.28566561]
[1722682174257,0.30179924,61882.0,61881.0,1.21315717]
[1722682174669,0.30179924,61882.0,61881.0,1.28566561]
[1722682174869,0.30179924,61882.0,61881.0,1.07887373]
[1722682175072,0.30179924,61882.0,61881.0,1.21317541]
[1722682175279,0.30179924,61882.0,61881.0,1.2615029]
[1722682175499,0.30179924,61882.0,61881.0,1.0191029]
[1722682176235,0.30179924,61882.0,61881.0,0.97077541]
[1722682176392,0.30179924,61882.0,61881.0,1.0191029]
[1722682176840,0.30179924,61882.0,61881.0,0.90363336]
[1722682179291,0.30179924,61882.0,61881.0,0.90363417]
[1722682179493,0.30179924,61882.0,61881.0,1.00804968]
[1722682179704,0.30179924,61882.0,61881.0,0.87374719]
[1722682179913,0.30179924,61882.0,61881.0,0.95973132]
[1722682180338,0.30179924,61882.0,61881.0,0.95973227]
[1722682186068,0.30179924,61882.0,61881.0,0.95973169]
[1722682189074,0.30179924,61882.0,61881.0,1.20213169]
[1722682189278,0.15839924,61882.0,61881.0,1.20213169]
[1722682189486,0.00094,61882.0,61881.0,1.25039307]
[1722682189682,0.00094,61882.0,61881.0,1.32568933]
[1722682189926,0.00094,61882.0,61881.0,1.27742795]
[1722682190137,0.00094,61882.0,61881.0,1.23965444]
[1722682190338,0.00094,61882.0,61881.0,1.37394293]
[1722682191659,0.00094,61882.0,61881.0,1.27742017]
[1722682192456,0.00094,61882.0,61881.0,1.37392776]
[1722682193222,0.00094,61882.0,61881.0,1.37392827]
[1722682193432,0.00094,61882.0,61881.0,1.37392702]
[1722682194982,0.00094,61882.0,61881.0,1.37392877]
[1722682195594,0.00094,61882.0,61881.0,1.37392919]
[1722682196159,0.14324,61882.0,61881.0,1.20211934]
[1722682196404,0.14324,61882.0,61881.0,1.27451368]
[1722682196806,0.14324,61882.0,61881.0,1.14022602]
[1722682197012,0.14324,61882.0,61881.0,1.27452038]
[1722682197198,0.14324,61882.0,61881.0,1.27452058]
[1722682197888,0.14324,61882.0,61881.0,1.20212624]
[1722682198289,0.14324,61882.0,61881.0,1.25039354]
[1722682198689,0.14324,61882.0,61881.0,1.20213004]
[1722682199764,0.14324,61882.0,61881.0,1.27452823]
[1722682199958,0.14324,61882.0,61881.0,1.20213004]
[1722682200584,0.14324,61882.0,61881.0,1.27453506]
[1722682200770,0.14324,61882.0,61881.0,1.1402367]
[1722682200971,0.14324,61882.0,61881.0,1.27453169]
[1722682201401,0.06304,61882.0,61881.0,1.20212743]
[1722682201606,0.06304,61882.0,61881.0,1.2745328]
[1722682201807,0.06304,61882.0,61881.0,1.27453775]
[1722682202364,0.06304,61882.0,61881.0,1.20212849]
[1722682202563,0.06304,61882.0,61881.0,1.27453775]
[1722682203870,0.06304,61882.0,61881.0,1.27453833]
[1722682204081,0.06304,61882.0,61881.0,1.14024094]
[1722682204279,0.06304,61882.0,61881.0,1.27453764]
[1722682204485,0.22049924,61882.0,61881.0,1.03213764]
[1722682204692,0.30339924,61882.0,61881.0,0.95191323]
[1722682205658,0.30339924,61882.0,61881.0,1.00801323]
[1722682205860,0.30339924,61882.0,61881.0,1.27453764]
[1722682206009,0.15839924,61882.0,61881.0,1.27453764]
[1722682206211,0.15839924,61882.0,61881.0,1.2986674]
[1722682207091,0.00094,61882.0,61881.0,1.2986674]
[1722682208026,0.00094,61882.0,61881.0,1.29866452]
[1722682209211,0.00094,61882.0,61881.0,1.2021255]
[1722682210093,0.00094,61882.0,61881.0,1.29875743]
[1722682210298,0.00094,61882.0,61881.0,1.2987646]
[1722682210699,0.00094,61882.0,61881.0,1.2021255]
[1722682211567,0.00094,61882.0,61881.0,1.32279927]
[1722682211760,0.00094,61882.0,61881.0,1.2021255]
[1722682212545,0.00094,61882.0,61881.0,1.20212202]
[1722682212743,0.00094,61882.0,61881.0,1.32294712]
[1722682214083,0.00094,61882.0,61881.0,1.20212202]
[1722682215941,0.00094,61882.0,61881.0,1.06783168]
[1722682216142,0.00094,61882.0,61881.0,1.20212359]
[1722682219667,0.00094,61882.0,61881.0,1.06783168]
[1722682219865,0.00094,61882.0,61881.0,1.20212257]
[1722682220153,0.14764,61882.0,61881.0,1.20212257]
[1722682223500,0.00094,61882.0,61881.0,1.20212292]